fUSD/lending_fUSD_20260203
["ID","MTS","AMOUNT","RATE_DAILY","PERIOD"]
[404416303,1770121833838,-631.60224832,0.00010382,2]
[404416304,1770121833847,-1223.52848547,0.00010397,2]
[404416305,1770121833857,-5151.41503734,0.00010397,2]
[404416306,1770121833866,-151.0,0.00010462,2]
[404416307,1770121833877,-150.0,0.00010462,2]
[404416308,1770121833887,-445.78256626,0.00010463,2]
[404416309,1770121833896,-314.01562276,0.00010463,2]
[404416310,1770121833905,-500.0,0.00010463,2]
[404416311,1770121833915,-209.63331239,0.00010463,2]
[404416312,1770121833924,-500.0,0.00010463,2]
[404416313,1770121833933,-500.0,0.00010463,2]
[404416314,1770121833943,-500.0,0.00010463,2]
[404416315,1770121833952,-500.0,0.00010463,2]
[404416316,1770121833961,-500.0,0.00010463,2]
[404416317,1770121833970,-500.0,0.00010463,2]
[404416318,1770121833979,-500.0,0.00010463,2]
[404416319,1770121833989,-500.0,0.00010463,2]
[404416320,1770121833998,-507.24112417,0.00010463,2]
[404416321,1770121834008,-500.0,0.00010463,2]
[404416322,1770121834017,-500.0,0.00010463,2]
[404416323,1770121834027,-500.0,0.00010463,2]
[404416324,1770121834036,-500.0,0.00010463,2]
[404416325,1770121834046,-500.0,0.00010463,2]
[404416326,1770121834056,-500.0,0.00010463,2]
[404416327,1770121834065,-500.0,0.00010463,2]
[404416328,1770121834074,-500.0,0.00010463,2]
[404416329,1770121834084,-500.0,0.00010463,2]
[404416330,1770121834093,-516.94092887,0.00010463,2]
[404416331,1770121834102,-500.0,0.00010463,2]
[404416332,1770121834111,-500.0,0.00010463,2]
[404416333,1770121834120,-500.0,0.00010463,2]
[404416334,1770121834131,-500.0,0.00010463,2]
[404416335,1770121834141,-173165.53311416,0.00010464,2]
[404416336,1770121834154,-2364.61060515,0.00010464,2]
[404416337,1770121834165,-393.43,0.00010464,2]
[404416338,1770121834188,-960.53983545,0.00010464,2]
[404416339,1770121834211,-346.78075065,0.00010464,2]
[404416342,1770121838196,-1341.69773257,0.00010464,2]
[404416343,1770121838208,-1260.0,0.00010464,2]
[404416344,1770121838219,-887.59089991,0.00010464,2]
[404416345,1770121838257,-819279.81706211,0.00010464,2]
[404416346,1770121838267,-3500000.0,0.00010465,2]
[404416347,1770121838277,-151.0,0.00010494,2]
[404416348,1770121838287,-4121.603,0.00010497,2]
[404416349,1770121838296,-55686.8131,0.00010497,2]
[404416350,1770121838306,-999.99,0.00010563,2]
[404416351,1770121838315,-9999.99,0.00010563,2]
[404416352,1770121838324,-150.99,0.00010563,2]
[404416353,1770121838334,-299.99,0.00010563,2]
[404416354,1770121838343,-6484.12,0.00010563,2]
[404416355,1770121838353,-150.99,0.00010563,2]
[404416356,1770121838363,-9999.99,0.00010564,2]
[404416357,1770121838372,-504.34,0.00010564,2]
[404416358,1770121838382,-157.68395652,0.00010565,2]
[404416359,1770121838392,-61542.61000504,0.00010565,2]
[404416360,1770121838402,-500.0,0.00010591,2]
[404416361,1770121838411,-151.0,0.00010591,2]
[404416362,1770121838426,-500.0,0.00010591,2]
[404416363,1770121838441,-500.0,0.00010591,2]
[404416364,1770121838455,-151.0,0.00010591,2]
[404416365,1770121838466,-500.0,0.00010591,2]
[404416366,1770121838477,-500.0,0.00010591,2]
[404416367,1770121838490,-151.0,0.00010591,2]
[404416368,1770121838504,-500.0,0.00010591,2]
[404416369,1770121838516,-500.0,0.00010591,2]
[404416371,1770121838529,-151.0,0.00010591,2]
[404416373,1770121838543,-500.0,0.00010591,2]
[404416375,1770121838556,-500.0,0.00010591,2]
[404416377,1770121838568,-151.0,0.00010591,2]
[404416380,1770121838581,-500.0,0.00010591,2]
[404416382,1770121838591,-500.0,0.00010591,2]
[404416384,1770121838602,-151.0,0.00010591,2]
[404416386,1770121838614,-500.0,0.00010591,2]
[404416389,1770121838626,-500.0,0.00010591,2]
[404416391,1770121838639,-151.0,0.00010591,2]
[404416393,1770121838652,-500.0,0.00010591,2]
[404416396,1770121838665,-500.0,0.00010591,2]
[404416398,1770121838683,-151.0,0.00010591,2]
[404416400,1770121838695,-500.0,0.00010591,2]
[404416403,1770121838708,-500.0,0.00010591,2]
[404416405,1770121838720,-151.0,0.00010591,2]
[404416407,1770121838734,-500.0,0.00010591,2]
[404416409,1770121838748,-500.0,0.00010591,2]
[404416411,1770121838760,-151.0,0.00010591,2]
[404416414,1770121838772,-500.0,0.00010591,2]
[404416416,1770121838787,-500.0,0.00010591,2]
[404416419,1770121838800,-151.0,0.00010591,2]
[404416421,1770121838812,-500.0,0.00010591,2]
[404416423,1770121838825,-151.0,0.00010591,2]
[404416426,1770121838840,-151.0,0.00010591,2]
[404416428,1770121838853,-151.0,0.00010591,2]
[404416430,1770121838866,-151.0,0.00010591,2]
[404416433,1770121838879,-151.0,0.00010591,2]
[404416435,1770121838890,-151.0,0.00010591,2]
[404416437,1770121838900,-151.0,0.00010591,2]
[404416439,1770121838912,-151.0,0.00010591,2]
[404416441,1770121838925,-151.0,0.00010591,2]
[404416444,1770121838940,-151.0,0.00010591,2]
[404416446,1770121838952,-151.0,0.00010591,2]
[404416448,1770121838962,-151.0,0.00010591,2]
[404416450,1770121838973,-151.0,0.00010591,2]
[404416453,1770121838984,-151.0,0.00010591,2]
[404416455,1770121838996,-151.0,0.00010591,2]
[404416457,1770121839010,-151.0,0.00010591,2]
[404416460,1770121839023,-151.0,0.00010591,2]
[404416462,1770121839034,-151.0,0.00010591,2]
[404416464,1770121839044,-151.0,0.00010591,2]
[404416466,1770121839055,-151.0,0.00010591,2]
[404416468,1770121839066,-10000.0,0.00010626,2]
[404416470,1770121839081,-2544.7096,0.00010626,2]
[404416473,1770121839096,-250.0,0.0001067,2]
[404416475,1770121839108,-193.0,0.0001067,2]
[404416477,1770121839119,-300.0,0.0001067,2]
[404416480,1770121839130,-2736.91844375,0.000107,2]
[404416482,1770121839142,-2091.44994307,0.000107,2]
[404416484,1770121839154,-268.69527082,0.000107,2]
[404416486,1770121839166,-420.0,0.00010736,2]
[404416488,1770121839177,-1680.0,0.00010736,2]
[404416490,1770121839190,-300.0,0.00010736,2]
[404416493,1770121839201,-150.03464931,0.00010745,2]
[404416495,1770121839213,-1029.43598608,0.000108,2]
[404416497,1770121839224,-33292.3487,0.00010826,2]
[404416499,1770121839235,-504.34,0.00010838,2]
[404416501,1770121839247,-6400.0,0.000109,3]
[404416504,1770121839259,-2454.46217318,0.000109,2]
[404416506,1770121839270,-166.66,0.00010959,2]
[404416508,1770121839283,-150.0,0.00010959,2]
[404416510,1770121839295,-166.66,0.0001108,2]
[404416513,1770121839307,-5408.27662591,0.00011099,2]
[404416515,1770121839317,-5408.27662586,0.00011099,2]
[404416516,1770121839328,-5408.27662586,0.00011099,2]
[404416518,1770121839340,-51478.58099797,0.00011099,2]
[404416519,1770121839351,-51478.58099788,0.00011099,2]
[404416520,1770121839363,-51478.58099788,0.00011099,2]
[404416521,1770121839374,-504.34,0.00011112,2]
[404416522,1770121839385,-51478.58099788,0.00011175,2]
[404416523,1770121839397,-166.66,0.00011201,2]
[404416524,1770121839408,-5408.27662586,0.00011219,2]
[404416525,1770121839419,-166.66,0.00011322,2]
[404416526,1770121839430,-504.34,0.00011386,2]
[404416527,1770121839441,-166.66,0.00011442,2]
[404416528,1770121839453,-51478.58099788,0.00011445,2]
[404416529,1770121839464,-2454.46217317,0.00011456,2]
[404416530,1770121839475,-255.0,0.00011487,2]
[404416531,1770121839486,-5408.27662586,0.00011498,2]
[404416532,1770121839497,-166.66,0.00011563,2]
[404416533,1770121839508,-504.34,0.0001166,2]
[404416534,1770121839520,-51478.58099788,0.00011714,2]
[404416535,1770121839532,-5408.27662586,0.00011778,2]
[404416536,1770121839543,-587.0,0.00011809,2]
[404416537,1770121839555,-2351.0,0.00011809,2]
[404416538,1770121839566,-150.0,0.00011884,2]
[404416539,1770121839578,-500.0,0.00011884,2]
[404416540,1770121839590,-1042.0,0.00011884,2]
[404416541,1770121839602,-425.76,0.00011884,2]
[404416542,1770121839613,-2736.91844369,0.000119,2]
[404416543,1770121839624,-504.34,0.00011934,2]
[404416544,1770121839636,-51478.58099788,0.00011984,2]
[404416545,1770121839647,-5408.27662586,0.00012057,2]
[404416546,1770121839659,-256.5,0.00012184,2]
[404416547,1770121839670,-504.34,0.00012208,2]
[404416548,1770121839684,-5408.27662586,0.00012336,2]
[404416549,1770121839695,-504.34,0.00012482,2]
[404416550,1770121839706,-2091.44994305,0.000125,2]
[404416551,1770121839717,-2454.46217317,0.0001253,2]
[404416552,1770121839729,-5408.27662586,0.00012615,2]
[404416553,1770121839740,-433.0,0.00012617,2]
[404416554,1770121839752,-500.0,0.00012658,2]
[404416555,1770121839764,-193732.81044148,0.0001269,2]
[404416556,1770121839775,-504.34,0.00012756,2]
[404416557,1770121839786,-250.0,0.00012817,2]
[404416558,1770121839797,-5408.27662586,0.00012894,2]
[404416559,1770121839808,-823.0,0.0001299,2]
[404416560,1770121839819,-3292.0,0.0001299,2]
[404416561,1770121839831,-5613.98559882,0.00013,2]
[404416562,1770121839842,-4434.56277461,0.00013,2]
[404416563,1770121839853,-1000.0,0.00013011,2]
[404416564,1770121839864,-504.34,0.0001303,2]
[404416565,1770121839875,-5354.65944007,0.0001305,2]
[404416566,1770121839888,-2736.91844369,0.000131,2]
[404416567,1770121839899,-151.0,0.00013254,2]
[404416568,1770121839911,-151.0,0.00013254,2]
[404416569,1770121839922,-504.34,0.00013304,2]
[404416570,1770121839933,-151.0,0.00013371,2]
[404416571,1770121839944,-151.0,0.00013371,2]
[404416572,1770121839955,-151.0,0.00013371,2]
[404416573,1770121839966,-151.0,0.00013401,2]
[404416574,1770121839977,-151.0,0.00013401,2]
[404416575,1770121839989,-183.76045452,0.000135,2]
[404416576,1770121840001,-504.34,0.00013578,2]
[404416577,1770121840012,-2454.46217317,0.00013604,2]
[404416578,1770121840023,-500.0,0.00013698,2]
[404416579,1770121840034,-189.27951938,0.00013698,2]
[404416580,1770121840047,-500.0,0.00013698,2]
[404416581,1770121840059,-500.0,0.00013698,2]
[404416582,1770121840070,-500.0,0.00013698,2]
[404416583,1770121840081,-500.0,0.00013698,2]
[404416584,1770121840092,-500.0,0.00013698,2]
[404416585,1770121840103,-509.06540724,0.00013698,2]
[404416586,1770121840114,-500.0,0.00013698,2]
[404416587,1770121840125,-500.0,0.00013698,2]
[404416588,1770121840136,-500.0,0.00013698,2]
[404416589,1770121840147,-500.0,0.00013698,2]
[404416590,1770121840158,-340.45778603,0.00013698,2]
[404416591,1770121840169,-500.0,0.00013698,2]
[404416592,1770121840181,-500.0,0.00013698,2]
[404416593,1770121840192,-500.0,0.00013698,2]
[404416595,1770121840203,-438.97921379,0.00013698,2]
[404416597,1770121840214,-199.38200897,0.00013698,2]
[404416599,1770121840225,-452.02134495,0.00013698,2]
[404416600,1770121840236,-500.0,0.00013698,2]
[404416601,1770121840247,-500.0,0.00013698,2]
[404416602,1770121840259,-500.0,0.00013698,2]
[404416603,1770121840269,-500.0,0.00013698,2]
[404416604,1770121840281,-378.56522147,0.00013698,2]
[404416605,1770121840292,-500.0,0.00013698,2]
[404416606,1770121840304,-500.0,0.00013698,2]
[404416607,1770121840315,-500.0,0.00013698,2]
[404416608,1770121840325,-500.0,0.00013698,2]
[404416609,1770121840337,-500.0,0.00013698,2]
[404416610,1770121840348,-500.0,0.00013698,2]
[404416611,1770121840359,-545.58231824,0.00013698,2]
[404416612,1770121840369,-500.0,0.00013698,2]
[404416613,1770121840380,-500.0,0.00013698,2]
[404416614,1770121840391,-500.0,0.00013698,2]
[404416615,1770121840402,-500.0,0.00013698,2]
[404416616,1770121840413,-500.0,0.00013698,2]
[404416617,1770121840425,-500.0,0.00013698,2]
[404416618,1770121840436,-500.0,0.00013698,2]
[404416619,1770121840447,-222.83714718,0.00013698,2]
[404416620,1770121840458,-500.0,0.00013698,2]
[404416621,1770121840469,-500.0,0.00013698,2]
[404416622,1770121840481,-439.60873549,0.00013698,2]
[404416623,1770121840494,-552.61203619,0.00013698,2]
[404416624,1770121840506,-500.0,0.00013698,2]
[404416625,1770121840516,-500.0,0.00013698,2]
[404416626,1770121840525,-500.0,0.00013698,2]
[404416627,1770121840535,-500.0,0.00013698,2]
[404416628,1770121840544,-500.0,0.00013698,2]
[404416629,1770121840553,-500.0,0.00013698,2]
[404416630,1770121840562,-500.0,0.00013698,2]
[404416631,1770121840571,-500.0,0.00013698,2]
[404416632,1770121840580,-500.0,0.00013698,2]
[404416633,1770121840589,-371.76186134,0.00013698,2]
[404416634,1770121840598,-9681.08,0.00013699,2]
[404416635,1770121840607,-5177.5,0.00013699,2]
[404416636,1770121840616,-500.0,0.000137,2]
[404416637,1770121840625,-500.0,0.000137,2]
[404416638,1770121840635,-260.20893212,0.000137,2]
[404416639,1770121840644,-500.0,0.000137,2]
[404416641,1770121840961,-500.0,0.000137,2]
[404416642,1770121840990,-500.0,0.000137,2]
[404416643,1770121841005,-504.34,0.00013852,2]
[404416644,1770121841015,-736.0,0.00013852,2]
[404416645,1770121841024,-504.34,0.00014125,2]
[404416646,1770121841033,-1223.52848545,0.00014149,2]
[404416647,1770121841043,-44956.68910458,0.00014156,2]
[404416648,1770121841052,-1000.0,0.00014248,2]
[404416649,1770121841061,-1000.0,0.00014248,2]
[404416650,1770121841070,-500.0,0.00014248,2]
[404416651,1770121841079,-1212.20991938,0.00014277,2]
[404416652,1770121841088,-3199.04115627,0.00014277,2]
[404416653,1770121841098,-5643.48779412,0.00014277,2]
[404416654,1770121841107,-1152.0,0.00014289,2]
[404416655,1770121841116,-4609.0,0.00014289,2]
[404416656,1770121841124,-2736.91844369,0.000143,2]
[404416657,1770121841134,-2091.44994305,0.000143,2]
[404416658,1770121841143,-160.0,0.00014314,2]
[404416659,1770121841153,-5177.5,0.00014384,2]
[404416660,1770121841162,-10332.61714049,0.0001439,2]
[404416661,1770121841172,-504.34,0.00014399,2]
[404416662,1770121841181,-721.12765535,0.00014668,2]
[404416663,1770121841190,-174.61919141,0.00014668,2]
[404416664,1770121841200,-578.20924308,0.00014668,2]
[404416665,1770121841209,-500.0,0.00014668,2]
[404416666,1770121841218,-500.0,0.00014668,2]
[404416667,1770121841227,-500.0,0.00014668,2]
[404416668,1770121841236,-209.40437684,0.00014668,2]
[404416669,1770121841246,-500.0,0.00014668,2]
[404416670,1770121841255,-500.0,0.00014668,2]
[404416671,1770121841264,-500.0,0.00014668,2]
[404416672,1770121841273,-500.0,0.00014668,2]
[404416673,1770121841282,-500.0,0.00014668,2]
[404416674,1770121841291,-500.0,0.00014668,2]
[404416675,1770121841300,-500.0,0.00014668,2]
[404416676,1770121841310,-500.0,0.00014668,2]
[404416677,1770121841319,-200.0,0.00014668,2]
[404416678,1770121841328,-322.6107,0.00014668,2]
[404416679,1770121841337,-277.35679052,0.00014668,2]
[404416680,1770121841346,-504.34,0.00014673,2]
[404416681,1770121841356,-2454.46217317,0.00014678,2]
[404416682,1770121841365,-217.15233878,0.00014723,2]
[404416683,1770121841374,-225.18697532,0.00014778,2]
[404416684,1770121841383,-495.7739334,0.00014796,2]
[404416685,1770121841392,-369.98194845,0.00014796,2]
[404416686,1770121841401,-233.51889341,0.00014833,2]
[404416687,1770121841410,-242.15909246,0.00014888,2]
[404416688,1770121841419,-251.11897888,0.00014943,2]
[404416689,1770121841428,-504.34,0.00014947,2]
[404416690,1770121841437,-260.4103811,0.00014998,2]
[404416691,1770121841446,-250.0,0.00015,2]
[404416692,1770121841455,-15000.0,0.00015,2]
[404416693,1770121841465,-2051.98803165,0.00015,2]
[404416694,1770121841474,-2141.537179,0.00015,14]
[404416695,1770121841483,-7988.62760331,0.00015,2]
[404416696,1770121841492,-596815.59333351,0.00015,3]
[404416697,1770121841502,-270.0455652,0.00015053,2]
[404416698,1770121841511,-900.0,0.00015068,2]
[404416699,1770121841520,-5177.5,0.00015068,2]
[404416700,1770121841529,-280.03725112,0.00015108,2]
[404416701,1770121841539,-290.39862941,0.00015163,2]
[404416702,1770121841548,-647.0,0.00015201,2]
[404416703,1770121841557,-181.08010149,0.00015216,2]
[404416704,1770121841567,-200.0,0.00015216,2]
[404416705,1770121841576,-287.61899177,0.00015216,2]
[404416706,1770121841585,-301.1433787,0.00015218,2]
[404416707,1770121841594,-504.34,0.00015221,2]
[404416708,1770121841609,-8442.32022516,0.00015277,2]
[404416709,1770121841618,-11422.7586,0.00015277,2]
[404416710,1770121841627,-504.34,0.00015495,2]
[404416711,1770121841636,-2736.91844369,0.000155,2]
[404416712,1770121841645,-150.0,0.00015675,7]
[404416713,1770121841654,-374.613885,0.00015675,7]
[404416714,1770121841663,-599.227771,0.00015675,7]
[404416715,1770121841673,-823.841657,0.00015675,7]
[404416716,1770121841684,-1048.455543,0.00015675,7]
[404416717,1770121841692,-1273.069429,0.00015675,7]
[404416718,1770121841702,-1497.683314,0.00015675,7]
[404416719,1770121841710,-1722.2972,0.00015675,7]
[404416720,1770121841720,-1946.911086,0.00015675,7]
[404416721,1770121841730,-2171.524972,0.00015675,7]
[404416722,1770121841739,-1613.0,0.00015718,2]
[404416723,1770121841751,-6275.0,0.00015718,2]
[404416724,1770121841759,-2454.46217317,0.00015752,2]
[404416725,1770121841769,-5177.5,0.00015753,2]
[404416726,1770121841777,-187.78006525,0.00015764,2]
[404416727,1770121841786,-200.0,0.00015764,2]
[404416728,1770121841795,-298.26089446,0.00015764,2]
[404416729,1770121841804,-504.34,0.00015769,2]
[404416730,1770121841813,-256.5,0.00015839,2]
[404416731,1770121841822,-1000.0,0.00015892,2]
[404416732,1770121841831,-1200.0,0.000159,5]
[404416733,1770121841839,-150.0,0.00015903,7]
[404416734,1770121841849,-447.236958,0.00015903,7]
[404416735,1770121841858,-744.473917,0.00015903,7]
[404416736,1770121841867,-1041.710876,0.00015903,7]
[404416737,1770121841876,-1338.947835,0.00015903,7]
[404416738,1770121841886,-1636.184793,0.00015903,7]
[404416739,1770121841895,-1933.421752,0.00015903,7]
[404416740,1770121841905,-2230.658711,0.00015903,7]
[404416741,1770121841914,-2527.89567,0.00015903,7]
[404416742,1770121841923,-2825.132628,0.00015903,7]
[404416743,1770121841932,-1000.0,0.00015918,2]
[404416744,1770121841941,-5000.0,0.0001596,2]
[404416745,1770121841950,-151.0,0.00015997,2]
[404416746,1770121841959,-160.0,0.00016,3]
[404416747,1770121841968,-291858.92003348,0.00016,4]
[404416748,1770121842255,-500.0,0.00016,4]
[404416749,1770121842302,-17401.00640134,0.00016,4]
[404416750,1770121842814,-150.03464931,0.00011951,2]
[404416751,1770121842823,-51478.58099788,0.00012254,2]
[404416752,1770121842833,-150.03464931,0.00013157,2]
[404416753,1770121842841,-150.03464931,0.00014363,2]
[404416754,1770121842851,-1677194.59710979,0.00016,4]
[404416755,1770121842860,-256.701042,0.00016,2]
[404416756,1770121842869,-334.5472959,0.00016037,2]
[404416757,1770121842879,-504.34,0.00016043,2]
[404416758,1770121842889,-2091.44994305,0.000161,2]
[404416759,1770121842898,-9999.99,0.00016116,2]
[404416760,1770121842907,-10000.0051123,0.000162,5]
[404416761,1770121842916,-500.0,0.00016292,2]
[404416762,1770121842926,-194.72792766,0.00016312,2]
[404416763,1770121842935,-200.0,0.00016312,2]
[404416764,1770121842944,-309.29654756,0.00016312,2]
[404416765,1770121842954,-504.52834379,0.00016317,2]
[404416766,1770121842962,-200.0,0.0001634,2]
[404416767,1770121842971,-1084.09055279,0.00016394,2]
[404416768,1770121842981,-471.47764088,0.00016399,2]
[404416769,1770121842990,-500.0,0.00016438,2]
[404416770,1770121842999,-500.0,0.00016438,2]
[404416771,1770121843009,-500.0,0.00016438,2]
[404416772,1770121843018,-330.22332732,0.00016438,2]
[404416773,1770121843027,-625.76447361,0.00016438,2]
[404416774,1770121843036,-625.76447361,0.00016438,2]
[404416775,1770121843046,-625.76447361,0.00016438,2]
[404416776,1770121843055,-625.76447361,0.00016438,2]
[404416777,1770121843064,-625.76447361,0.00016438,2]
[404416778,1770121843074,-625.76447361,0.00016438,2]
[404416779,1770121843084,-625.76447361,0.00016438,2]
[404416780,1770121843095,-625.76447361,0.00016438,2]
[404416781,1770121843104,-625.76447361,0.00016438,2]
[404416782,1770121843114,-625.76447361,0.00016438,2]
[404416783,1770121843123,-625.76447361,0.00016438,2]
[404416784,1770121843132,-625.76447361,0.00016438,2]
[404416785,1770121843143,-625.76447361,0.00016438,2]
[404416786,1770121843153,-625.76447361,0.00016438,2]
[404416787,1770121843162,-625.76447361,0.00016438,2]
[404416788,1770121843171,-625.76447361,0.00016438,2]
[404416789,1770121843181,-625.76447361,0.00016438,2]
[404416790,1770121843190,-625.76447361,0.00016438,2]
[404416791,1770121843200,-625.76447361,0.00016438,2]
[404416792,1770121843209,-625.76447361,0.00016438,2]
[404416793,1770121843218,-625.76447361,0.00016438,2]
[404416794,1770121843228,-625.76447361,0.00016438,2]
[404416795,1770121843237,-625.76447361,0.00016438,2]
[404416796,1770121843247,-625.76447361,0.00016438,2]
[404416797,1770121843256,-625.76447361,0.00016438,2]
[404416798,1770121843266,-625.76447361,0.00016438,2]
[404416799,1770121843275,-625.76447361,0.00016438,2]
[404416800,1770121843284,-625.76447361,0.00016438,2]
[404416801,1770121843294,-625.76447361,0.00016438,2]
[404416802,1770121843303,-625.76447361,0.00016438,2]
[404416803,1770121843313,-625.76447361,0.00016438,2]
[404416804,1770121843322,-625.76447361,0.00016438,2]
[404416805,1770121843332,-625.76447361,0.00016438,2]
[404416806,1770121843342,-625.76447361,0.00016438,2]
[404416807,1770121843351,-625.76447361,0.00016438,2]
[404416808,1770121843361,-625.76447361,0.00016438,2]
[404416809,1770121843370,-625.76447361,0.00016438,2]
[404416810,1770121843380,-625.76447361,0.00016438,2]
[404416811,1770121843389,-625.76447361,0.00016438,2]
[404416812,1770121843399,-625.76447361,0.00016438,2]
[404416813,1770121843409,-625.76447361,0.00016438,2]
[404416814,1770121843418,-625.76447361,0.00016438,2]
[404416815,1770121843428,-625.76447361,0.00016438,2]
[404416816,1770121843437,-625.76447361,0.00016438,2]
[404416817,1770121843447,-625.76447361,0.00016438,2]
[404416818,1770121843457,-625.76447361,0.00016438,2]
[404416819,1770121843466,-625.76447361,0.00016438,2]
[404416820,1770121843482,-625.76447361,0.00016438,2]
[404416821,1770121843496,-625.76447361,0.00016438,2]
[404416822,1770121843506,-625.76447361,0.00016438,2]
[404416823,1770121843516,-625.76447361,0.00016438,2]
[404416824,1770121843526,-625.76447361,0.00016438,2]
[404416825,1770121843536,-625.76447361,0.00016438,2]
[404416826,1770121843546,-625.76447361,0.00016438,2]
[404416827,1770121843556,-625.76447361,0.00016438,2]
[404416828,1770121843566,-625.76447361,0.00016438,2]
[404416829,1770121843576,-5021.73866126,0.00016438,2]
[404416830,1770121843586,-5021.73866126,0.00016438,2]
[404416831,1770121843596,-5021.73866126,0.00016438,2]
[404416832,1770121843605,-5021.73866126,0.00016438,2]
[404416833,1770121843615,-5021.73866126,0.00016438,2]
[404416834,1770121843625,-5021.73866126,0.00016438,2]
[404416835,1770121843635,-5021.73866126,0.00016438,2]
[404416836,1770121843645,-5021.73866126,0.00016438,2]
[404416837,1770121843655,-5021.73866126,0.00016438,2]
[404416838,1770121843665,-5021.73866126,0.00016438,2]
[404416839,1770121843677,-5021.73866126,0.00016438,2]
[404416840,1770121843687,-5021.73866126,0.00016438,2]
[404416841,1770121843696,-5021.73866126,0.00016438,2]
[404416842,1770121843706,-5021.73866126,0.00016438,2]
[404416843,1770121843715,-5021.73866126,0.00016438,2]
[404416844,1770121843725,-5021.73866126,0.00016438,2]
[404416845,1770121843735,-5021.73866126,0.00016438,2]
[404416846,1770121843745,-5021.73866126,0.00016438,2]
[404416847,1770121843755,-5021.73866126,0.00016438,2]
[404416848,1770121843764,-5021.73866126,0.00016438,2]
[404416849,1770121843774,-5021.73866126,0.00016438,2]
[404416850,1770121843784,-5021.73866126,0.00016438,2]
[404416851,1770121843793,-5021.73866126,0.00016438,2]
[404416852,1770121843803,-5021.73866126,0.00016438,2]
[404416853,1770121843812,-5021.73866126,0.00016438,2]
[404416854,1770121843822,-5021.73866126,0.00016438,2]
[404416855,1770121843832,-5021.73866126,0.00016438,2]
[404416869,1770121844072,-5021.73866126,0.00016438,2]
[404416870,1770121844085,-5021.73866126,0.00016438,2]
[404416871,1770121844095,-5021.73866126,0.00016438,2]
[404416872,1770121844104,-5021.73866126,0.00016438,2]
[404416873,1770121844113,-5021.73866126,0.00016438,2]
[404416874,1770121844123,-5021.73866138,0.00016438,2]
[404416875,1770121844132,-900.0,0.00016438,2]
[404416876,1770121844143,-5177.5,0.00016438,2]
[404416877,1770121844152,-200.0,0.00016438,2]
[404416878,1770121844163,-800.0,0.00016438,2]
[404416879,1770121844173,-1725.90149928,0.00016444,2]
[404416880,1770121844183,-16623.0,0.000165,2]
[404416881,1770121844192,-1000.0,0.00016515,2]
[404416882,1770121844202,-30000.0,0.00016589,2]
[404416883,1770121844212,-360.83984207,0.000166,2]
[404416884,1770121844221,-775.48,0.00016637,2]
[404416885,1770121844231,-2736.91844369,0.000167,2]
[404416886,1770121844240,-150.03464931,0.00016776,2]
[404416887,1770121844249,-1265.13779333,0.00016795,2]
[404416888,1770121844259,-2454.46217317,0.00016826,2]
[404416889,1770121844268,-201.93286099,0.0001686,2]
[404416890,1770121844277,-200.0,0.0001686,2]
[404416891,1770121844286,-413.46677569,0.0001686,2]
[404416892,1770121844296,-1265.13779333,0.00016877,2]
[404416893,1770121844305,-1265.13779333,0.00016932,2]
[404416894,1770121844314,-1100.0,0.00016986,7]
[404416895,1770121844323,-300.0,0.00017,2]
[404416896,1770121844333,-500.0,0.00017,7]
[404416897,1770121844342,-500.0,0.00017,7]
[404416898,1770121844351,-500.0,0.00017,7]
[404416899,1770121844361,-500.0,0.00017,7]
[404416900,1770121844370,-500.0,0.00017,7]
[404416901,1770121844379,-500.0,0.00017,7]
[404416902,1770121844388,-500.0,0.00017,7]
[404416903,1770121844397,-500.0,0.00017,7]